bitfinex/quotes_BTCUSD_20230110
["timestamp","ask_amount","ask_price","bid_price","bid_amount"]
[1673390222175,5.47990378,17446.0,17445.0,0.01183667]
[1673390222430,5.29399117,17446.0,17445.0,0.01183667]
[1673390222674,5.90851535,17446.0,17445.0,0.01183667]
[1673390223176,5.29399117,17446.0,17445.0,0.01183667]
[1673390223430,4.99399117,17446.0,17445.0,0.01183667]
[1673390224146,5.60312135,17446.0,17445.0,0.01183667]
[1673390224649,5.90312135,17446.0,17445.0,0.01183667]
[1673390224904,5.60312135,17446.0,17445.0,0.01183667]
[1673390226932,4.99399117,17446.0,17445.0,0.01183667]
[1673390227185,0.00407932,17444.0,17443.0,0.71203814]
[1673390227443,1.89947679,17444.0,17443.0,0.71203814]
[1673390227706,2.4186836,17444.0,17443.0,0.71203814]
[1673390228448,3.01178224,17444.0,17443.0,0.71203814]
[1673390228698,3.14778224,17444.0,17443.0,0.71203814]
[1673390228943,2.5546836,17444.0,17443.0,0.71203814]
[1673390229733,2.89752769,17444.0,17443.0,0.71203814]
[1673390233512,4.06388933,17444.0,17443.0,0.61203814]
[1673390235755,3.72104524,17444.0,17443.0,0.61203814]
[1673390236251,4.06390997,17444.0,17443.0,0.61203814]
[1673390238256,3.47084419,17444.0,17443.0,0.61203814]
[1673390238501,4.46835265,17444.0,17443.0,0.61203814]
[1673390238742,4.06394206,17444.0,17443.0,0.61203814]
[1673390238994,3.47084342,17444.0,17443.0,0.61203814]
[1673390239244,4.06394206,17444.0,17443.0,0.61203814]
[1673390239749,3.72104524,17444.0,17443.0,0.61203814]
[1673390240243,4.15047516,17444.0,17443.0,0.61203814]
[1673390240974,4.06397283,17444.0,17443.0,0.61203814]
[1673390243268,3.72104524,17444.0,17443.0,0.61203814]
[1673390248215,3.1279466,17444.0,17443.0,0.61203814]
[1673390248478,3.72104524,17444.0,17443.0,0.61203814]
[1673390248739,3.71696592,17444.0,17443.0,0.61203814]
[1673390248981,4.91588939,17444.0,17443.0,0.61203814]
[1673390250783,4.91588939,17444.0,17443.0,0.0119655]
[1673390251038,4.4354906,17444.0,17443.0,0.6119655]
[1673390251312,4.4354906,17444.0,17443.0,0.0119655]
[1673390251571,4.4354906,17444.0,17443.0,0.6119655]
[1673390251833,4.4354906,17444.0,17443.0,0.0119655]
[1673390252344,4.98774186,17444.0,17443.0,0.6119655]
[1673390254054,5.15174186,17444.0,17443.0,0.6119655]
[1673390254307,5.25720893,17444.0,17443.0,0.6119655]
[1673390254550,5.13112799,17444.0,17443.0,0.6119655]
[1673390254773,5.79517247,17444.0,17443.0,0.6119655]
[1673390255240,5.2814045,17444.0,17443.0,0.6119655]
[1673390255517,5.79517247,17444.0,17443.0,0.6119655]
[1673390255770,5.93117247,17444.0,17443.0,0.6119655]
[1673390256024,4.56515324,17444.0,17443.0,0.6119655]
[1673390256281,4.42915324,17444.0,17443.0,0.6119655]
[1673390257296,4.86515324,17444.0,17443.0,0.6119655]
[1673390257552,5.24292121,17444.0,17443.0,0.6119655]
[1673390257810,5.15826779,17444.0,17443.0,0.6119655]
[1673390258132,5.85717672,17444.0,17443.0,0.6119655]
[1673390258363,5.27778566,17444.0,17443.0,0.6119655]
[1673390259586,5.14178566,17444.0,17443.0,0.6119655]
[1673390259832,4.97778566,17444.0,17443.0,0.6119655]
[1673390260077,4.84178566,17444.0,17443.0,0.6119655]
[1673390260317,4.97778566,17444.0,17443.0,0.6119655]
[1673390262346,4.84178566,17444.0,17443.0,0.6119655]
[1673390262565,4.97778566,17444.0,17443.0,0.6119655]
[1673390263046,4.84178566,17444.0,17443.0,0.6119655]
[1673390263278,5.53288963,17444.0,17443.0,0.6119655]
[1673390263536,4.97778566,17444.0,17443.0,0.6119655]
[1673390263808,4.46401769,17444.0,17443.0,0.6119655]
[1673390264281,4.32801769,17444.0,17443.0,0.6119655]
[1673390264505,4.84178566,17444.0,17443.0,0.6119655]
[1673390264974,4.97778566,17444.0,17443.0,0.6119655]
[1673390266015,3.87091905,17444.0,17443.0,0.6119655]
[1673390266269,4.46401769,17444.0,17443.0,0.6119655]
[1673390266778,4.32801769,17444.0,17443.0,0.6119655]
[1673390267053,4.46401769,17444.0,17443.0,0.6119655]
[1673390267555,4.32801769,17444.0,17443.0,0.6119655]
[1673390267819,4.46401769,17444.0,17443.0,0.6119655]
[1673390269181,3.87091905,17444.0,17443.0,0.6119655]
[1673390269467,2.57925288,17444.0,17443.0,0.6119655]
[1673390269720,2.22014588,17444.0,17443.0,0.6119655]
[1673390269975,2.56318198,17444.0,17443.0,0.6119655]
[1673390270227,2.92228898,17444.0,17443.0,0.6119655]
[1673390271231,2.57925288,17444.0,17443.0,0.6119655]
[1673390271486,2.56315906,17444.0,17443.0,0.6119655]
[1673390272767,2.22014588,17444.0,17443.0,0.6119655]
[1673390273038,2.56315994,17444.0,17443.0,0.6119655]
[1673390273531,2.04395504,17444.0,17443.0,0.6119655]
[1673390273560,1.87243551,17444.0,17443.0,0.6119655]
[1673390273788,1.87235039,17444.0,17443.0,0.6119655]
[1673390274311,1.65827951,17444.0,17443.0,0.6119655]
[1673390274569,1.98175902,17444.0,17443.0,0.6119655]
[1673390274843,1.99785005,17444.0,17443.0,0.6119655]
[1673390277855,2.57111305,17444.0,17443.0,0.6119655]
[1673390281832,2.21200605,17444.0,17443.0,0.6119655]
[1673390282084,2.57111305,17444.0,17443.0,0.6119655]
[1673390282869,0.64937738,17443.0,17440.0,2.86902945]
[1673390283124,0.17149576,17442.0,17440.0,2.45304619]
[1673390283379,0.17149576,17442.0,17440.0,2.28395615]
[1673390283699,0.17149576,17442.0,17440.0,1.19653153]
[1673390283893,0.17149576,17442.0,17440.0,0.62313853]
[1673390284672,0.17149576,17442.0,17440.0,0.62596315]
[1673390285207,0.17149576,17442.0,17440.0,0.62313853]
[1673390285459,0.30549576,17442.0,17440.0,0.62313853]
[1673390285972,0.30549576,17442.0,17440.0,0.79505319]
[1673390286240,0.91376482,17442.0,17440.0,0.62313853]
[1673390286760,0.91376482,17442.0,17441.0,0.00282446]
[1673390288902,0.91376482,17442.0,17440.0,1.01056899]
[1673390289119,0.77976482,17442.0,17440.0,1.01056899]
[1673390289310,0.91576482,17442.0,17440.0,1.01056899]
[1673390289590,0.77976482,17442.0,17440.0,1.01056899]
[1673390289849,0.91576482,17442.0,17440.0,1.01056899]
[1673390290604,0.77976482,17442.0,17440.0,1.01056899]
[1673390290867,0.91576482,17442.0,17440.0,1.01056899]
[1673390291904,0.91576482,17442.0,17440.0,0.83865433]
[1673390292889,0.91576482,17442.0,17440.0,0.84147895]
[1673390293109,0.91576482,17442.0,17440.0,1.01339361]
[1673390293880,0.91576482,17442.0,17440.0,1.01056899]
[1673390294639,0.91576482,17442.0,17440.0,0.83865433]
[1673390294896,1.17300845,17442.0,17440.0,0.83865433]
[1673390295147,1.17300845,17442.0,17440.0,0.26528233]
[1673390295668,0.17149576,17441.0,17440.0,0.24976653]
[1673390295925,0.88197458,17441.0,17440.0,0.24976653]
[1673390296189,0.88197458,17441.0,17440.0,0.2]
[1673390297251,0.88197458,17441.0,17440.0,0.20282462]
[1673390297252,1.01697458,17441.0,17440.0,0.20282462]
[1673390297512,0.84547882,17441.0,17440.0,0.20282462]
[1673390297773,0.84547882,17441.0,17440.0,0.2]
[1673390298254,0.84547882,17441.0,17440.0,0.20282462]
[1673390298549,0.84547882,17441.0,17440.0,0.2]
[1673390301588,1.01697458,17441.0,17440.0,0.2]
[1673390310770,1.27421821,17441.0,17439.0,0.21216097]
[1673390311024,1.86710719,17441.0,17439.0,0.21216097]
[1673390311277,0.76624084,17440.0,17439.0,0.21216097]
[1673390311528,1.02348447,17440.0,17439.0,0.21216097]
[1673390312228,0.76624084,17440.0,17439.0,0.21216097]
[1673390312750,1.61637345,17440.0,17439.0,0.01216097]
[1673390312994,1.09569858,17440.0,17439.0,0.01216097]
[1673390313220,1.23069858,17440.0,17439.0,0.01216097]
[1673390313464,1.15848447,17440.0,17439.0,0.01216097]
[1673390314640,1.51759147,17440.0,17439.0,0.01216097]
[1673390315085,1.15848447,17440.0,17439.0,0.01216097]
[1673390316601,0.90124084,17440.0,17439.0,0.01216097]
[1673390320632,1.49412982,17440.0,17439.0,0.01216097]
[1673390321145,0.90124084,17440.0,17439.0,0.01216097]
[1673390321367,1.16606574,17440.0,17439.0,0.01216097]
[1673390321619,1.49412982,17440.0,17439.0,0.01216097]
[1673390322353,0.90124084,17440.0,17439.0,0.01216097]
[1673390322604,2.06752382,17440.0,17439.0,0.01216097]
[1673390324630,0.72974508,17440.0,17439.0,0.01216097]
[1673390325392,0.135,17440.0,17439.0,0.01216097]
[1673390325655,0.57858377,17441.0,17439.0,0.37126797]
[1673390325916,0.57858377,17441.0,17440.0,0.359107]
[1673390326191,0.57858377,17441.0,17439.0,0.02614407]
[1673390327254,0.57858377,17441.0,17440.0,0.359107]
[1673390327478,0.57858377,17441.0,17439.0,0.22614407]
[1673390327983,0.71258377,17441.0,17439.0,0.22614407]
[1673390328249,0.57858377,17441.0,17439.0,0.22614407]
[1673390329305,0.57858377,17441.0,17439.0,0.2262853]
[1673390329554,0.57858377,17441.0,17439.0,0.22614407]
[1673390330645,0.71258377,17441.0,17439.0,0.22614407]
[1673390332232,0.71258377,17441.0,17440.0,0.359107]
[1673390332490,0.71258377,17441.0,17439.0,0.22614407]
[1673390332743,0.71258377,17441.0,17440.0,0.04578138]
[1673390334338,0.57858377,17441.0,17440.0,0.04578138]
[1673390334589,0.71358377,17441.0,17440.0,0.04578138]
[1673390341047,0.135,17441.0,17440.0,0.04578138]
[1673390341556,0.135,17441.0,17440.0,0.06047717]
[1673390342333,0.135,17441.0,17440.0,0.05547717]
[1673390344871,0.135,17441.0,17440.0,0.04078138]
[1673390346147,0.91423152,17441.0,17440.0,0.04078138]
[1673390346407,0.77923152,17441.0,17440.0,0.04078138]
[1673390346660,1.5081205,17441.0,17440.0,0.04078138]
[1673390346905,1.98847113,17441.0,17440.0,0.04078138]
[1673390347182,1.62936413,17441.0,17440.0,0.04078138]
[1673390347431,2.12447113,17441.0,17440.0,0.04078138]
[1673390347731,1.17247515,17441.0,17440.0,0.04078138]
[1673390347939,1.17247515,17441.0,17440.0,0.04091589]
[1673390348194,0.91523152,17441.0,17440.0,0.04078138]
[1673390349450,1.27433852,17441.0,17440.0,0.04078138]
[1673390350196,0.91523152,17441.0,17440.0,0.04078138]
[1673390350954,1.27433852,17441.0,17440.0,0.04078138]
[1673390351711,0.91523152,17441.0,17440.0,0.04078138]
[1673390354206,1.17247515,17441.0,17440.0,0.04078138]
[1673390354455,1.53158215,17441.0,17440.0,0.04078138]
[1673390355479,2.47142761,17441.0,17440.0,0.04078138]
[1673390355738,2.64292336,17441.0,17440.0,0.04078138]
[1673390355998,3.90077878,17441.0,17440.0,0.04078138]
[1673390356494,4.47413978,17441.0,17440.0,0.04078138]
[1673390357011,4.33813978,17441.0,17440.0,0.04078138]
[1673390357508,4.1271833,17441.0,17440.0,0.04078138]
[1673390357827,3.87126344,17441.0,17440.0,0.04078138]
[1673390358064,2.8691353,17441.0,17440.0,0.04078138]
[1673390360086,3.29790244,17441.0,17440.0,0.04078138]
[1673390360405,3.04085139,17441.0,17440.0,0.04078138]
[1673390360604,4.12990043,17441.0,17440.0,0.04078138]
[1673390360856,3.61421239,17441.0,17440.0,0.04078138]
[1673390361369,4.12990327,17441.0,17440.0,0.04078138]
[1673390362119,4.6002292,17441.0,17440.0,0.04078138]
[1673390362362,4.25723769,17441.0,17440.0,0.04078138]
[1673390363869,4.59994045,17441.0,17440.0,0.04078138]
[1673390364120,4.24083345,17441.0,17440.0,0.04078138]
[1673390364395,4.59994045,17441.0,17440.0,0.04078138]
[1673390364638,4.25723769,17441.0,17440.0,0.04078138]
[1673390365711,4.59993267,17441.0,17440.0,0.04078138]
[1673390366692,3.66746467,17441.0,17440.0,0.04078138]
[1673390366950,4.02657167,17441.0,17440.0,0.04078138]
[1673390368461,4.59993267,17441.0,17440.0,0.04078138]
[1673390369216,4.02657167,17441.0,17440.0,0.04078138]
[1673390370238,4.59993267,17441.0,17440.0,0.04078138]
[1673390371507,4.12960674,17441.0,17440.0,0.04078138]
[1673390373511,4.12960674,17441.0,17440.0,0.0406757]
[1673390376814,3.19713874,17441.0,17440.0,0.0406757]
[1673390377069,3.04055486,17441.0,17440.0,0.0406757]
[1673390377552,2.73287302,17441.0,17440.0,0.0406757]
[1673390377805,3.04055486,17441.0,17440.0,0.0406757]
[1673390378061,3.55304509,17441.0,17440.0,0.0406757]
[1673390379142,4.12640609,17441.0,17440.0,0.0406757]
[1673390379952,3.55304509,17441.0,17440.0,0.0406757]
[1673390381333,4.12640609,17441.0,17440.0,0.0406757]
[1673390382097,3.19393809,17441.0,17440.0,0.0406757]
[1673390382361,3.55304509,17441.0,17440.0,0.0406757]
[1673390382613,3.04055486,17441.0,17440.0,0.0406757]
[1673390382898,2.68144786,17441.0,17440.0,0.0406757]
[1673390383153,3.04055486,17441.0,17440.0,0.0406757]
[1673390383414,2.68144786,17441.0,17440.0,0.0406757]
[1673390383666,3.55311876,17441.0,17440.0,0.0406757]
[1673390384925,3.21042378,17441.0,17440.0,0.0406757]
[1673390386223,2.63706278,17441.0,17440.0,0.0406757]
[1673390386482,3.21042378,17441.0,17440.0,0.0406757]
[1673390387287,4.57203656,17441.0,17440.0,0.0406757]
[1673390387539,5.01095687,17441.0,17440.0,0.0406757]
[1673390388299,4.87495687,17441.0,17440.0,0.0406757]
[1673390388553,3.56990842,17441.0,17440.0,0.0406757]
[1673390388809,4.35776427,17441.0,17440.0,0.0406757]
[1673390389324,4.22176427,17441.0,17440.0,0.0406757]
[1673390389585,4.36637642,17441.0,17440.0,0.0406757]
[1673390389858,4.57206297,17441.0,17440.0,0.0406757]
[1673390390093,4.93116997,17441.0,17440.0,0.0406757]
[1673390390347,4.93117079,17441.0,17440.0,0.0406757]
[1673390390591,4.50237642,17441.0,17440.0,0.0406757]
[1673390391831,5.06132666,17441.0,17440.0,0.0406757]
[1673390392588,4.36637642,17441.0,17440.0,0.0406757]
[1673390392842,4.50237642,17441.0,17440.0,0.0406757]
[1673390393314,5.01614439,17441.0,17440.0,0.0406757]
[1673390393863,5.15214439,17441.0,17440.0,0.0406757]
[1673390394961,5.45214439,17441.0,17440.0,0.0406757]
[1673390395210,0.00083933,17439.0,17437.0,0.06138598]
[1673390395472,1.13105995,17438.0,17437.0,0.06138598]
[1673390395731,0.95951754,17438.0,17437.0,0.06138598]
[1673390396269,0.95951754,17438.0,17437.0,0.01343815]
[1673390396520,0.60041054,17438.0,17437.0,0.01343815]
[1673390396773,0.77195295,17438.0,17437.0,0.01343815]
[1673390397028,1.13105995,17438.0,17437.0,0.01343815]
[1673390397281,0.77195295,17438.0,17437.0,0.01343815]
[1673390397791,1.90040353,17438.0,17437.0,0.01343815]
[1673390398048,2.98584819,17438.0,17437.0,0.01343815]
[1673390398298,2.62674119,17438.0,17437.0,0.01343815]
[1673390398811,2.03640353,17438.0,17437.0,0.01343815]
[1673390399062,2.29355266,17438.0,17437.0,0.01343815]
[1673390399320,2.98584819,17438.0,17437.0,0.01343815]
[1673390399579,2.39551053,17438.0,17437.0,0.01343815]
[1673390399831,2.08773741,17438.0,17437.0,0.01343815]
[1673390400089,2.22373741,17438.0,17437.0,0.01343815]
[1673390400349,1.86463041,17438.0,17437.0,0.01343815]
[1673390400603,2.22373741,17438.0,17437.0,0.01343815]
[1673390401170,1.86462772,17438.0,17437.0,0.01343815]
[1673390401396,2.98343319,17438.0,17437.0,0.01343815]
[1673390401652,2.62432619,17438.0,17437.0,0.01343815]
[1673390401903,2.65017098,17438.0,17437.0,0.01343815]
[1673390402157,2.22130823,17438.0,17437.0,0.01343815]
[1673390402925,2.62432619,17438.0,17437.0,0.01343815]
[1673390403171,2.98343319,17438.0,17437.0,0.01343815]
[1673390403429,2.62432619,17438.0,17437.0,0.01343815]
[1673390403700,2.81159902,17438.0,17437.0,0.01343815]
[1673390405541,2.45249202,17438.0,17437.0,0.01343815]
[1673390405793,2.6422463,17438.0,17437.0,0.01343815]
[1673390407099,2.2831393,17438.0,17437.0,0.01343815]
[1673390407353,2.6422463,17438.0,17437.0,0.01343815]
[1673390407636,2.5062463,17438.0,17437.0,0.01343815]
[1673390407889,2.1471393,17438.0,17437.0,0.01343815]
[1673390408126,2.6422463,17438.0,17437.0,0.01343815]
[1673390408382,2.2831393,17438.0,17437.0,0.01343815]
[1673390408643,2.6422463,17438.0,17437.0,0.01343815]
[1673390409168,2.2831393,17438.0,17437.0,0.01343815]
[1673390409420,1.69280164,17438.0,17437.0,0.01343815]
[1673390409681,2.05190864,17438.0,17437.0,0.01343815]
[1673390410223,2.6422463,17438.0,17437.0,0.01343815]
[1673390410737,2.2831393,17438.0,17437.0,0.01343815]
[1673390411007,2.6422463,17438.0,17437.0,0.01343815]
[1673390411642,2.2831393,17438.0,17437.0,0.01343815]
[1673390412070,2.6422463,17438.0,17437.0,0.01343815]
[1673390412329,2.2831393,17438.0,17437.0,0.01343815]
[1673390412589,2.64221594,17438.0,17437.0,0.01343815]
[1673390412845,2.81356399,17438.0,17437.0,0.01343815]
[1673390414370,2.67756399,17438.0,17437.0,0.01343815]
[1673390414637,2.81356399,17438.0,17437.0,0.01343815]
[1673390416171,3.38702399,17438.0,17437.0,0.01343815]
[1673390416440,3.8260418,17438.0,17437.0,0.01343815]
[1673390416715,4.52369582,17438.0,17437.0,0.01343815]
[1673390416960,4.08467801,17438.0,17437.0,0.01343815]
[1673390417722,3.94867801,17438.0,17437.0,0.01343815]
[1673390418008,4.08567801,17438.0,17437.0,0.01343815]
[1673390418461,3.55985816,17438.0,17437.0,0.01343815]
[1673390418972,3.38787766,17438.0,17437.0,0.01343815]
[1673390419289,3.42285816,17438.0,17437.0,0.01343815]
[1673390419485,4.08580684,17438.0,17437.0,0.01343815]
[1673390419745,3.55885816,17438.0,17437.0,0.01343815]
[1673390419995,3.38688668,17438.0,17437.0,0.01343815]
[1673390421024,3.55885816,17438.0,17437.0,0.01343815]
[1673390421540,4.81567389,17438.0,17437.0,0.01343815]
[1673390421794,5.08569941,17438.0,17437.0,0.01343815]
[1673390422062,5.65169848,17438.0,17437.0,0.01343815]
[1673390422315,5.08569941,17438.0,17437.0,0.01343815]
[1673390422569,4.94969941,17438.0,17437.0,0.01343815]
[1673390423097,5.08569941,17438.0,17437.0,0.01343815]
[1673390424351,5.22269941,17438.0,17437.0,0.01343815]
[1673390425125,4.86359241,17438.0,17437.0,0.01343815]
[1673390425375,5.22269941,17438.0,17437.0,0.01343815]
[1673390425908,5.22269941,17438.0,17437.0,0.01332927]
[1673390426668,4.69585816,17438.0,17437.0,0.01332927]
[1673390426920,4.52391546,17438.0,17437.0,0.01332927]
[1673390427170,4.16480846,17438.0,17437.0,0.01332927]
[1673390427424,4.52391546,17438.0,17437.0,0.01332927]
[1673390427683,4.16480846,17438.0,17437.0,0.01332927]
[1673390427940,4.52391546,17438.0,17437.0,0.01332927]
[1673390428485,4.16480846,17438.0,17437.0,0.01332927]
[1673390428735,4.52391546,17438.0,17437.0,0.01332927]
[1673390429215,4.16480846,17438.0,17437.0,0.01332927]
[1673390429465,4.52391546,17438.0,17437.0,0.01332927]
[1673390429686,5.22399993,17438.0,17437.0,0.01332927]
[1673390429981,4.86489293,17438.0,17437.0,0.01332927]
[1673390430244,5.22399993,17438.0,17437.0,0.01332927]
[1673390431540,4.88135976,17438.0,17437.0,0.01332927]
[1673390433622,5.24093716,17438.0,17437.0,0.01332927]
[1673390433882,5.60004416,17438.0,17437.0,0.01332927]
[1673390434394,5.24093716,17438.0,17437.0,0.01332927]
[1673390434725,5.60004416,17438.0,17437.0,0.01332927]
[1673390434961,5.24093716,17438.0,17437.0,0.01332927]
[1673390435180,6.02866769,17438.0,17437.0,0.01332927]
[1673390435474,5.66956069,17438.0,17437.0,0.01332927]
[1673390435737,6.02866769,17438.0,17437.0,0.01332927]
[1673390436255,4.52201354,17438.0,17437.0,0.01332927]
[1673390436502,4.88112054,17438.0,17437.0,0.01332927]
[1673390437377,4.52201354,17438.0,17437.0,0.01332927]
[1673390437579,4.88112054,17438.0,17437.0,0.01332927]
[1673390437840,4.52201354,17438.0,17437.0,0.01332927]
[1673390438098,4.88112054,17438.0,17437.0,0.01332927]
[1673390438639,4.45249701,17438.0,17437.0,0.01332927]
[1673390438892,5.60002673,17438.0,17437.0,0.01332927]
[1673390439128,5.59549501,17438.0,17437.0,0.01332927]
[1673390439381,5.60002673,17438.0,17437.0,0.01332927]
[1673390440670,5.85967145,17438.0,17437.0,0.01332927]
[1673390440925,0.00479654,17436.0,17434.0,0.26517959]
[1673390441184,0.59994585,17435.0,17434.0,0.26517959]
[1673390441461,1.54939051,17435.0,17434.0,0.26517959]
[1673390441712,2.11018713,17435.0,17434.0,0.2156725]
[1673390441981,1.53662913,17435.0,17434.0,0.2156725]
[1673390442578,2.68374513,17435.0,17434.0,0.2156725]
[1673390442788,2.85515823,17435.0,17434.0,0.0156725]
[1673390443018,3.58149589,17435.0,17434.0,0.0156725]
[1673390443835,2.81955524,17435.0,17434.0,0.0156725]
[1673390444051,2.68355524,17435.0,17434.0,0.0156725]
[1673390444337,2.81955524,17435.0,17434.0,0.0156725]
[1673390445347,3.4098929,17435.0,17434.0,0.0156725]
[1673390445862,2.81955524,17435.0,17434.0,0.0156725]
[1673390446405,3.4098929,17435.0,17434.0,0.0156725]
[1673390447410,3.58114273,17435.0,17434.0,0.0156725]
[1673390447665,3.85157002,17435.0,17434.0,0.0156725]
[1673390448421,4.11822401,17435.0,17434.0,0.0156725]
[1673390448696,3.52750515,17435.0,17434.0,0.0156725]
[1673390448955,4.00233702,17435.0,17434.0,0.0156725]
[1673390449466,3.86633702,17435.0,17434.0,0.0156725]
[1673390449716,4.00333702,17435.0,17434.0,0.0156725]
[1673390450510,2.89534129,17435.0,17434.0,0.0156725]
[1673390450748,4.02003116,17435.0,17434.0,0.0156725]
[1673390451000,4.53427046,17435.0,17434.0,0.0156725]
[1673390451603,5.09297577,17435.0,17434.0,0.0156725]
[1673390451858,4.53291969,17435.0,17434.0,0.0156725]
[1673390452123,4.39591969,17435.0,17434.0,0.0156725]
[1673390452379,4.53291969,17435.0,17434.0,0.0156725]
[1673390453716,4.33792916,17435.0,17434.0,0.0156725]
[1673390454345,4.33792916,17435.0,17434.0,0.00961591]
[1673390454571,4.39591969,17435.0,17434.0,0.00961591]
[1673390454788,4.53291969,17435.0,17434.0,0.00961591]
[1673390455001,0.2,17434.0,17433.0,0.01180456]
[1673390455215,2.97704975,17434.0,17433.0,0.01180456]
[1673390455642,3.20395835,17434.0,17433.0,0.01180456]
[1673390456392,3.34095835,17434.0,17433.0,0.01180456]
[1673390456642,3.68247204,17434.0,17433.0,0.01180456]
[1673390456934,3.23529683,17434.0,17433.0,0.01180456]
[1673390457428,2.89378314,17434.0,17433.0,0.01180456]
[1673390457665,3.2352666,17434.0,17433.0,0.01180456]
[1673390458628,2.71168106,17434.0,17433.0,0.01180456]
[1673390458882,2.54082643,17434.0,17433.0,0.01180456]
[1673390460410,2.32572101,17434.0,17433.0,0.01180456]
[1673390461702,2.15506425,17434.0,17433.0,0.01180456]
[1673390463199,2.01806425,17434.0,17433.0,0.01180456]
[1673390463504,2.15506425,17434.0,17433.0,0.01180456]
[1673390463763,2.01806425,17434.0,17433.0,0.01180456]
[1673390464787,2.15506425,17434.0,17433.0,0.01180456]
[1673390465546,2.01806425,17434.0,17433.0,0.01180456]
[1673390465801,2.15506425,17434.0,17433.0,0.01180456]
[1673390466317,2.01806425,17434.0,17433.0,0.01180456]
[1673390466819,2.15506425,17434.0,17433.0,0.01180456]
[1673390467597,2.01806425,17434.0,17433.0,0.01180456]
[1673390467852,1.58147325,17434.0,17433.0,0.01193983]
[1673390468115,1.00788225,17434.0,17433.0,0.01180456]
[1673390468626,0.64877525,17434.0,17433.0,0.01180456]
[1673390469178,1.00788225,17434.0,17433.0,0.01180456]
[1673390469984,0.64877525,17434.0,17433.0,0.01180456]
[1673390471269,0.64877525,17434.0,17433.0,0.01193341]
[1673390471523,0.64877525,17434.0,17433.0,0.01180456]
[1673390472281,0.64877525,17434.0,17433.0,0.01193341]
[1673390472537,0.64877525,17434.0,17433.0,0.02043341]
[1673390472795,0.64877525,17434.0,17433.0,0.03536587]
[1673390473561,0.64877525,17434.0,17433.0,0.03523702]
[1673390474613,0.64877525,17434.0,17433.0,0.03536587]
[1673390474614,0.137,17434.0,17433.0,0.03536587]
[1673390476136,0.137,17434.0,17433.0,0.03523702]
[1673390478685,0.137,17434.0,17433.0,0.09520759]
[1673390480750,0.496107,17434.0,17433.0,0.09520759]
[1673390481514,0.137,17434.0,17433.0,0.09520759]
[1673390484597,0.137,17434.0,17433.0,0.08027513]
[1673390484852,0.75169502,17434.0,17433.0,0.08027513]
[1673390485135,1.11080202,17434.0,17433.0,0.08027513]
[1673390485640,0.75169502,17434.0,17433.0,0.08027513]
[1673390490531,0.137,17434.0,17433.0,0.09431489]
[1673390500778,0.66676376,17434.0,17433.0,0.09431489]
[1673390501299,0.137,17434.0,17433.0,0.09431489]
[1673390504179,0.30765676,17434.0,17433.0,0.09431489]
[1673390505853,0.66676376,17434.0,17433.0,0.09431489]
[1673390506109,0.56371073,17434.0,17433.0,0.09431489]
[1673390506610,0.30765676,17434.0,17433.0,0.09431489]
[1673390508390,0.56371073,17434.0,17433.0,0.09431489]
[1673390509910,0.92281773,17434.0,17433.0,0.09431489]
[1673390510662,0.56371073,17434.0,17433.0,0.09431489]
[1673390510910,0.16013645,17432.0,17431.0,1.96471155]
[1673390511138,0.16013645,17432.0,17431.0,2.88473578]
[1673390511393,0.16013645,17432.0,17431.0,2.88461271]
[1673390511650,0.16013645,17432.0,17431.0,3.24371971]
[1673390512728,0.29613645,17432.0,17431.0,3.24371971]
[1673390512951,0.29613645,17432.0,17431.0,3.25221971]
[1673390513447,0.29613645,17432.0,17431.0,3.25234278]
[1673390513704,0.29613645,17432.0,17431.0,3.25221971]
[1673390515214,0.29613645,17432.0,17431.0,3.68192336]
[1673390515476,0.29613645,17432.0,17431.0,3.42447619]
[1673390515736,0.29613645,17432.0,17431.0,3.25292741]
[1673390515986,0.29613645,17432.0,17431.0,3.42447619]
[1673390516209,0.29613645,17432.0,17431.0,3.42435312]
[1673390516452,0.29613645,17432.0,17431.0,3.42447619]
[1673390516709,0.29613645,17432.0,17431.0,3.42435312]
[1673390517448,0.29613645,17432.0,17431.0,3.42447619]
[1673390518195,0.29613645,17432.0,17431.0,3.2528093]
[1673390518450,0.29613645,17432.0,17431.0,3.25293237]
[1673390518947,0.29613645,17432.0,17431.0,3.2528093]
[1673390519700,0.136,17432.0,17431.0,3.09267285]
[1673390521721,0.134077,17432.0,17431.0,3.26421667]
[1673390522230,0.134077,17432.0,17431.0,3.50870096]
[1673390522486,0.134077,17432.0,17431.0,3.26500898]
[1673390529569,0.134077,17432.0,17431.0,3.26488591]
[1673390533149,0.134077,17432.0,17431.0,3.26500898]
[1673390540309,0.134077,17432.0,17431.0,3.26500313]
[1673390544155,0.134077,17432.0,17431.0,3.26500869]
[1673390544412,0.134077,17432.0,17431.0,3.26488591]
[1673390544940,0.13398874,17432.0,17431.0,3.26488591]
[1673390545479,0.13398874,17432.0,17431.0,3.26500869]
[1673390545766,0.13398874,17432.0,17431.0,3.26488591]
[1673390547460,0.13398874,17432.0,17431.0,3.26500869]
[1673390548644,0.13398874,17432.0,17431.0,3.26480869]
[1673390550320,0.13398874,17432.0,17431.0,3.26477078]
[1673390550573,0.13398874,17432.0,17431.0,3.85278934]
[1673390550829,0.13398874,17432.0,17431.0,3.50862374]
[1673390551084,0.13398874,17432.0,17431.0,3.85278989]
[1673390551337,0.13398874,17432.0,17431.0,3.26477133]
[1673390552916,0.13398874,17432.0,17431.0,2.92060518]
[1673390553680,0.13398874,17432.0,17431.0,3.26465207]
[1673390554450,0.13398874,17432.0,17431.0,3.26465974]
[1673390555739,0.13398874,17432.0,17431.0,3.2668931]
[1673390558341,0.13398874,17432.0,17431.0,3.26488805]
[1673390561394,0.13398874,17432.0,17431.0,3.26465974]
[1673390561653,0.13398874,17432.0,17431.0,2.73401505]
[1673390562123,0.13398874,17432.0,17431.0,3.26465974]
[1673390562633,0.13398874,17432.0,17431.0,3.09312178]
[1673390563147,0.13398874,17432.0,17431.0,3.26465974]
[1673390563399,0.13398874,17432.0,17431.0,3.0931222]
[1673390563886,0.13398874,17432.0,17431.0,3.52282585]
[1673390564134,0.13398874,17432.0,17431.0,3.26465974]
[1673390566169,0.13398874,17432.0,17431.0,3.26497243]
[1673390568632,0.13398874,17432.0,17431.0,3.31641812]
[1673390569634,0.13398874,17432.0,17431.0,3.14486283]
[1673390569877,0.1339144,17432.0,17431.0,3.57456499]
[1673390570129,0.1339144,17432.0,17431.0,3.57456629]
[1673390570375,0.1339144,17432.0,17431.0,3.14486264]
[1673390570862,0.1339144,17432.0,17431.0,3.14454995]
[1673390574635,0.1339144,17432.0,17431.0,3.14486264]
[1673390580390,0.1339144,17432.0,17431.0,3.31641812]
[1673390581822,0.1339144,17432.0,17431.0,3.57454341]
[1673390582098,0.1339144,17432.0,17431.0,3.14483976]
[1673390582608,0.1339144,17432.0,17431.0,3.14484062]
[1673390582866,0.1339144,17432.0,17431.0,3.31641812]
[1673390584132,0.1339144,17432.0,17431.0,3.14453324]
[1673390585117,0.1339144,17432.0,17431.0,3.14636928]
[1673390585390,0.1339144,17432.0,17431.0,3.14453324]
[1673390585881,0.1339144,17432.0,17431.0,2.78542624]
[1673390586145,0.1339144,17432.0,17431.0,2.78726228]
[1673390586403,0.1339144,17432.0,17431.0,2.78542624]